[Event "2017 South African Open Ch"]
[Site "Durban"]
[Date "2017.07.21"]
[Round "10"]
[White "Rooplal, Desmond"]
[Black "Zwakala, Ntando"]
[Result "0-1"]
[ECO "B42"]
[WhiteElo "1686"]
[BlackElo "2020"]
[Annotator "NA"]
[PlyCount "68"]
[EventDate "2017.??.??"]
[EventCountry "RSA"]
[SourceTitle "playchess.com"]
[Source "ChessBase"]
[SourceQuality "1"]
[TimeControl "5400+30"]

1. e4 {[%emt 0:11:34]} c5 {[%emt 0:00:10]} 2. Nf3 {[%emt 0:01:02]} e6 {[%emt 0:00:18]} 3. d4 {[%emt 0:00:23]} cxd4 {[%emt 0:00:06]} 4. Nxd4 {[%emt 0:00:04]} a6 {[%emt 0:00:10]} 5. Bd3 {[%emt 0:00:31]} Nf6 {[%emt 0:00:08]} 6. c4 {[%emt 0:01:20]} Qc7 {[%emt 0:00:11]} 7. O-O {[%emt 0:00:48]} Be7 {[%emt 0:00:07]} 8. Nc3 {[%emt 0:00:15]} O-O {[%emt 0:00:07]} 9. Bd2 {[%emt 0:01:21]} b6 {[%emt 0:00:09]} 10. Rc1 {[%emt 0:00:26]} Bb7 {[%emt 0:00:06]} 11. Qe2 {[%emt 0:01:56]} d6 {[%emt 0:00:07]} 12. b3 {[%emt 0:00:35]} Nbd7 {[%emt 0:00:06]} 13. Rfe1 {[%emt 0:04:01]} Rac8 {[%emt 0:01:01]} 14. Bb1 {[%emt 0:01:28]} Rfe8 {[%emt 0:00:12]} 15. Nf3 {[%emt 0:08:34]} Ne5 {[%emt 0:03:52]} 16. Nxe5 {[%emt 0:02:27]} dxe5 {[%emt 0:00:09]} 17. Rcd1 {[%emt 0:09:30]} Red8 {[%emt 0:00:15]} 18. Bc1 {[%emt 0:00:54]} Bb4 {[%emt 0:00:37]} 19. Rxd8+ {[%emt 0:07:00]} Rxd8 {[%emt 0:00:08]} 20. Bb2 {[%emt 0:03:51]} Bc5 {[%emt 0:09:03]} 21. Kf1 {[%emt 0:02:28]} Bd4 {[%emt 0:00:12]} 22. Rc1 {[%emt 0:01:41]} g6 {[%emt 0:05:44]} 23. Qc2 {[%emt 0:11:09]} Ng4 {[%emt 0:03:39]} 24. Nd1 {[%emt 0:03:48]} Nxh2+ {[%emt 0:04:46]} 25. Ke2 {[%emt 0:00:04]} Ng4 {[%emt 0:00:24]} 26. f3 {[%emt 0:00:28]} Nf6 {[%emt 0:00:17]} 27. Nf2 {[%emt 0:01:20]} Nh5 {[%emt 0:00:12]} 28. Nd3 {[%emt 0:02:44]} Qe7 {[%emt 0:05:10]} 29. Nxe5 {[%emt 0:03:30]} Bxb2 {[%emt 0:02:09]} 30. Qxb2 {[%emt 0:00:23]} Qg5 {[%emt 0:00:04]} 31. Ng4 {[%emt 0:05:58]} f5 {[%emt 0:00:21]} 32. Ne3 {[%emt 0:01:25]} fxe4 {[%emt 0:00:18]} 33. Ng4 {[%emt 0:09:33]} exf3+ {[%emt 0:00:31]} 34. gxf3 {[%emt 0:00:03]} Bxf3+ {[%emt 0:00:37]} 0-1

[Event "2017 South African Open Ch"]
[Site "Durban"]
[Date "2017.07.22"]
[Round "11"]
[White "Bhawoodien, Mohamed Ozayr"]
[Black "Mwale Joseph"]
[Result "1-0"]
[ECO "E40"]
[WhiteElo "2103"]
[BlackElo "2159"]
[Annotator "NA"]
[PlyCount "186"]
[EventDate "2017.??.??"]
[EventCountry "RSA"]
[SourceTitle "playchess.com"]
[Source "ChessBase"]
[SourceQuality "1"]
[TimeControl "5400+30"]

1. d4 {[%emt 0:05:06]} Nf6 {[%emt 0:00:04]} 2. c4 {[%emt 0:00:13]} e6 {[%emt 0:00:05]} 3. Nc3 {[%emt 0:00:36]} Bb4 {[%emt 0:00:05]} 4. e3 {[%emt 0:00:03]} d5 {[%emt 0:00:20]} 5. a3 {[%emt 0:00:49]} Bxc3+ {[%emt 0:00:18]} 6. bxc3 {[%emt 0:00:02]} c5 {[%emt 0:00:15]} 7. cxd5 {[%emt 0:01:28]} exd5 {[%emt 0:00:28]} 8. Bd3 {[%emt 0:01:38]} O-O {[%emt 0:00:05]} 9. Ne2 {[%emt 0:03:33]} Nc6 {[%emt 0:00:24]} 10. O-O {[%emt 0:02:09]} c4 {[%emt 0:00:58]} 11. Bc2 {[%emt 0:00:44] E49: Nimzo-Indian: Rubinstein: 5 Bd3 d5 6 a3 Bxc3+ 7 bxc3} b5 {[%emt 0:01:06] LiveBook: 4 Games} 12. Ng3 {[%emt 0:02:19]} a5 {[%emt 0:03:18]} 13. e4 {[%emt 0:03:03]} dxe4 $146 {[%emt 0:01:58]} ({Predecessor:} 13... Bg4 14. f3 Be6 15. Bg5 h6 16. Bxf6 Qxf6 17. f4 dxe4 18. Nxe4 Qf5 {1-0 (36) Flores,D (2588)-Cunha,L (2327) Mar del Plata 2016}) 14. Nxe4 {[%emt 0:04:21]} Bf5 {[%emt 0:02:40]} (14... Nd5 $14) 15. Bg5 {[%emt 0:01:57]} Bxe4 {[%emt 0:00:42]} 16. Bxe4 {[%emt 0:00:21]} Rc8 {[%emt 0:05:26]} 17. Bxf6 {[%emt 0:16:16]} Qxf6 {[%emt 0:00:16]} 18. Qh5 {[%emt 0:00:05]} g6 {[%emt 0:01:24]} 19. Qxb5 {[%emt 0:00:09]} h5 {[%emt 0:03:23]} 20. a4 {[%emt 0:08:33]} h4 {[%emt 0:03:04]} 21. h3 {[%emt 0:01:36]} Nd8 {[%emt 0:02:52]} 22. Bd5 {[%emt 0:05:59]} Ne6 {[%emt 0:02:22]} 23. Bxe6 {[%emt 0:00:11]} Qxe6 {[%emt 0:00:04]} 24. Rfe1 {[%emt 0:01:30]} Qc6 {[%emt 0:00:51]} 25. Qxa5 {[%emt 0:00:44]} Rb8 {[%emt 0:03:55]} 26. Rab1 {[%emt 0:04:35]} Rxb1 {[%emt 0:03:19]} 27. Rxb1 {[%emt 0:00:03]} Qe4 {[%emt 0:00:01]} 28. Qb4 {[%emt 0:09:38]} Rd8 {[%emt 0:09:25]} 29. a5 {[%emt 0:03:56]} Rd5 {[%emt 0:00:12]} 30. Qb7 {[%emt 0:00:12]} Qf5 {[%emt 0:00:15]} 31. Ra1 $2 {[%emt 0:04:04]} (31. a6 $18 {has better winning chances.} Ra5 32. Rf1) 31... Rxa5 {[%emt 0:02:18]} 32. Rxa5 {[%emt 0:00:16]} Qxa5 {[%emt 0:00:03]} 33. Qc8+ {[%emt 0:00:08]} Kg7 {[%emt 0:00:14]} 34. Qxc4 {[%emt 0:00:36]} Qa1+ {[%emt 0:00:05]} 35. Kh2 {[%emt 0:00:25]} Qe1 {[%emt 0:00:03]} 36. Qc7 {[%emt 0:07:44]} Qxf2 {[%emt 0:00:03]} 37. d5 {[%emt 0:01:39]} Kh6 {[%emt 0:02:26]} 38. Qe5 {[%emt 0:04:08]} ({Only move:} 38. c4 $18) 38... f6 $1 {[%emt 0:01:52]} 39. Qd6 {[%emt 0:02:42]} Qe3 {[%emt 0:34:35]} 40. Qxf6 {[%emt 0:02:06]} Qg3+ {[%emt 0:00:08]} 41. Kg1 {[%emt 0:00:06]} Qe1+ {[%emt 0:02:14]} 42. Qf1 {[%emt 0:00:10]} Qxc3 {[%emt 0:00:05]} 43. Qd1 {[%emt 0:00:52]} Qc5+ {[%emt 0:02:07]} 44. Kh1 {[%emt 0:00:58]} Qd6 {[%emt 0:00:27]} 45. Qd4 {[%emt 0:00:24]} g5 {[%emt 0:01:13]} 46. Kg1 $1 {[%emt 0:01:36]} Kg6 {[%emt 0:01:18]} 47. Kf2 {[%emt 0:01:24]} Kf5 {[%emt 0:01:42]} 48. Ke2 {[%emt 0:00:26]} Kg6 {[%emt 0:01:31]} 49. Kd2 {[%emt 0:01:37]} Kf5 {[%emt 0:02:06]} 50. Kc2 {[%emt 0:00:47]} Kg6 {[%emt 0:01:48]} 51. Qe4+ {[%emt 0:00:34]} Kf6 {[%emt 0:00:10] [#]} 52. Kb3 {[%emt 0:00:35]} (52. Kd2 $1 $16) 52... Qb8+ $2 {[%emt 0:01:18] [#]} (52... Qa6 $11 {and Black has nothing to worry.}) 53. Qb4 $1 {[%emt 0:00:16]} Qa8 {[%emt 0:02:02]} 54. Qd6+ {[%emt 0:00:32]} Kg7 {[%emt 0:00:44]} 55. Qe7+ {[%emt 0:00:24]} Kg6 {[%emt 0:00:22]} 56. Qe6+ {[%emt 0:00:36]} Kg7 {[%emt 0:00:19]} 57. Qd7+ {[%emt 0:00:14]} Kg8 {[%emt 0:01:20]} 58. Qc6 {[%emt 0:00:49]} Qb8+ {[%emt 0:00:12]} 59. Kc2 {[%emt 0:00:16]} Qg3 {[%emt 0:02:30]} 60. d6 {[%emt 0:00:23]} Qf2+ {[%emt 0:02:27]} 61. Kb3 {[%emt 0:00:13]} Qe3+ {[%emt 0:00:10]} 62. Kb4 {[%emt 0:00:20]} Qd2+ {[%emt 0:00:37]} 63. Kb5 {[%emt 0:00:21]} Qb2+ {[%emt 0:00:28]} 64. Ka6 {[%emt 0:00:29]} Qa3+ {[%emt 0:00:50]} 65. Kb7 {[%emt 0:00:16]} Qb3+ {[%emt 0:00:17]} 66. Kc7 {[%emt 0:00:19]} Qg3 {[%emt 0:02:30]} 67. Kc8 {[%emt 0:00:23]} Qe5 {[%emt 0:00:04]} 68. d7 {[%emt 0:00:39]} Qf5 {[%emt 0:00:01]} 69. Kb7 {[%emt 0:00:39]} Qf7 {[%emt 0:00:35]} 70. Kc8 {[%emt 0:01:13]} Qf5 {[%emt 0:00:04]} 71. Kb8 {[%emt 0:00:31]} Qe5+ {[%emt 0:00:14]} 72. Qc7 {[%emt 0:01:16]} Qb5+ {[%emt 0:00:15]} 73. Kc8 {[%emt 0:00:29]} (73. Ka8 Qa4+ 74. Qa7 Qe4+ 75. Qb7 Qa4+ 76. Kb8 Qa5 77. Qc8+ Kf7) 73... Qa6+ {[%emt 0:01:46]} 74. Qb7 {[%emt 0:00:32]} Qe6 {[%emt 0:00:49]} 75. Kc7 {[%emt 0:00:33]} Qe5+ $1 {[%emt 0:00:26]} 76. Kb6 {[%emt 0:00:26]} Qd4+ {[%emt 0:00:39]} 77. Ka5 {[%emt 0:00:28]} (77. Kc7 Qf4+ 78. Kc8 $18) 77... Qa1+ {[%emt 0:00:43]} 78. Kb5 {[%emt 0:00:10]} Qe5+ {[%emt 0:00:27]} 79. Kc4 {[%emt 0:00:14]} Qe2+ {[%emt 0:00:48]} 80. Kd4 {[%emt 0:00:39]} Qd2+ {[%emt 0:00:34]} 81. Ke5 {[%emt 0:00:35]} Qf4+ {[%emt 0:00:02]} 82. Ke6 {[%emt 0:00:03]} Qf7+ {[%emt 0:00:02]} 83. Kd6 {[%emt 0:00:08]} Qf6+ {[%emt 0:00:17]} 84. Kc7 {[%emt 0:00:06]} Qe5+ {[%emt 0:00:45]} 85. Kc8 {[%emt 0:00:27]} Qc5+ $2 {[%emt 0:00:55]} (85... Qf5 $18) 86. Qc7 {[%emt 0:00:15]} Qf5 {[%emt 0:00:05]} 87. Qc4+ {[%emt 0:00:34]} Kf8 {[%emt 0:01:23]} 88. Qb4+ {[%emt 0:00:17]} Kg8 {[%emt 0:00:20]} 89. Qb3+ {[%emt 0:00:12]} Kg7 {[%emt 0:00:02]} 90. Qc3+ {[%emt 0:01:39]} Kg8 {[%emt 0:00:37]} 91. Kc7 {[%emt 0:00:00]} Qf7 {[%emt 0:01:11]} 92. Qd4 {[%emt 0:00:00]} Kh7 {[%emt 0:00:04]} 93. Qe4+ {[%emt 0:00:04]} Kg7 $18 {[%emt 0:01:05]} (93... Kh6) 1-0

[Event "2017 South African Open Ch"]
[Site "Durban"]
[Date "2017.07.22"]
[Round "11"]
[White "Bhawoodien, Shabir Hussain"]
[Black "Rooplal, Desmond"]
[Result "1-0"]
[ECO "C47"]
[WhiteElo "2066"]
[BlackElo "1686"]
[Annotator "NA RC"]
[PlyCount "103"]
[EventDate "2017.??.??"]
[EventCountry "RSA"]
[SourceTitle "playchess.com"]
[Source "ChessBase"]
[SourceQuality "1"]
[TimeControl "5400+30"]

{[%evp 8,86,12,32767,32767,12,47,61,32767,32767,32767,32767,32767,32767,32767,-14,0,-8,32767,-18,32767,8,-23,7,-10,0,32767,32767,8,0,2,0,12,32767,0,0,15,1,32767,32767,24,2,22,6,14,9,28,0,0,0,-7,32767,0,0,319,329,330,336,32767,32767,32767,32767,32767,32767,32767,32767,452,384,379,391,403,420,505,516,525,618,675,597,683,617,666]} 1. e4 {[%emt 0:06:23]} e5 {[%emt 0:06:34]} 2. Nf3 {[%emt 0:00:05]} Nf6 {[%emt 0:01:32]} 3. Nc3 {[%emt 0:01:46]} Nc6 {[%emt 0:00:03]} 4. a3 {[%emt 0:03:04]} Be7 {[%emt 0:01:09] LiveBook: 73 Games} 5. d4 {[%emt 0:03:08]} exd4 {[%emt 0:01:34] C47: Scotch Four Knights and Four Knights with 4 g3} 6. Nxd4 {[%emt 0:02:00]} Nxd4 {[%emt 0:01:34]} (6... d6 7. Bb5 Bd7 8. Nxc6 bxc6 9. Bd3 O-O 10. O-O c5 11. h3 Bc6 12. Bf4 Nd7 13. Re1 Bf6 14. Rb1 Rb8 15. Qd2 {½-½ (39) Motylev,A (2686)-Dubov,D (2614) Moscow 2014}) 7. Qxd4 {[%emt 0:00:04]} d6 {[%emt 0:00:15]} 8. Be2 {[%emt 0:02:33]} O-O {[%emt 0:00:42]} 9. O-O {[%emt 0:00:02]} Bg4 {[%emt 0:05:28]} 10. Bd3 $146 {[%emt 0:06:53]} ({Predecessor:} 10. Bxg4 Nxg4 11. Bd2 c5 12. Qd3 Qc7 {1-0 (24) Dymak,P-Zemen,J Svetla nad Sazavou 1997}) 10... Nd7 {[%emt 0:03:04]} 11. h3 {[%emt 0:04:28]} (11. Nd5 $14) 11... Be6 {[%emt 0:03:15]} 12. Bd2 {[%emt 0:03:41]} Bf6 {[%emt 0:04:21]} 13. Qe3 {[%emt 0:00:20]} Ne5 {[%emt 0:01:01]} 14. f4 {[%emt 0:09:32]} Nc4 {[%emt 0:01:09]} 15. Bxc4 $1 {[%emt 0:03:15]} Bxc4 {[%emt 0:00:02]} 16. Rfd1 {[%emt 0:03:35]} Re8 {[%emt 0:06:32]} 17. Qf3 {[%emt 0:02:37]} Qe7 {[%emt 0:12:42]} (17... c6 $5 {[%cal Rd8b6]}) 18. Re1 {[%emt 0:05:24]} Bd4+ {[%emt 0:03:27]} 19. Kh1 {[%emt 0:02:44]} c6 {[%emt 0:04:26]} 20. Rad1 {[%emt 0:06:25]} Rad8 {[%emt 0:03:00]} 21. b3 {[%emt 0:04:26]} Ba6 {[%emt 0:00:35]} 22. Nb1 {[%emt 0:01:14]} Qh4 {[%emt 0:04:31]} 23. Ba5 {[%emt 0:08:03]} Bf2 {[%emt 0:06:15]} 24. Bxd8 {[%emt 0:00:42]} Rxd8 {[%emt 0:00:01]} 25. Re3 {[%emt 0:04:59]} Bxe3 {[%emt 0:00:02]} 26. Qxe3 {[%emt 0:00:01]} h6 {[%emt 0:02:34]} 27. Nd2 {[%emt 0:01:27]} b6 {[%emt 0:08:07]} 28. Kh2 {[%emt 0:00:17]} Qe7 {[%emt 0:03:21]} 29. Nf3 {[%emt 0:00:54]} Re8 {[%emt 0:05:07]} 30. Qd2 {[%emt 0:07:32]} Qxe4 $2 {[%emt 0:00:59]} (30... c5 $11 {and Black has nothing to worry.}) 31. Re1 {[%emt 0:00:16]} Be2 {[%emt 0:01:14]} 32. Ng1 {[%emt 0:00:22]} Re6 {[%emt 0:03:55]} 33. Rxe2 {[%emt 0:00:08]} Qf5 {[%emt 0:00:15]} 34. Rxe6 {[%emt 0:00:14]} Qxe6 {[%emt 0:00:07]} 35. Nf3 {[%emt 0:00:28]} c5 {[%emt 0:00:24]} 36. c4 {[%emt 0:00:32]} a6 {[%emt 0:00:17]} 37. Kg3 {[%emt 0:01:56]} b5 {[%emt 0:00:14]} 38. Qd3 {[%emt 0:01:46]} bxc4 {[%emt 0:00:22]} 39. Qxc4 {[%emt 0:00:19]} d5 {[%emt 0:03:42]} 40. Qxc5 {[%emt 0:00:11]} Qg6+ {[%emt 0:01:11]} 41. Kh2 {[%emt 0:00:08]} Qe4 {[%emt 0:00:36]} 42. Qd4 {[%emt 0:00:07]} Qe6 {[%emt 0:00:38]} 43. b4 {[%emt 0:00:26]} Qd6 $18 {[%emt 0:00:46]} 44. Kg1 {[%emt 0:01:12]} f6 {[%emt 0:00:13]} 45. a4 {[%emt 0:00:15]} Qd7 {[%emt 0:00:31]} 46. a5 {[%emt 0:00:35]} Qb5 {[%emt 0:00:34]} 47. Kf2 {[%emt 0:00:53]} Kh8 {[%emt 0:00:20]} 48. Ne1 {[%emt 0:00:08]} Qa4 {[%emt 0:00:30]} 49. Nd3 {[%emt 0:00:18]} Qc2+ {[%emt 0:00:44]} 50. Kg3 {[%emt 0:00:22]} Qb3 {[%emt 0:00:19]} 51. Kh2 {[%emt 0:00:08]} Qa2 {[%emt 0:00:18]} 52. Nc5 {[%emt 0:00:11]} 1-0

[Event "2017 South African Open Ch"]
[Site "Durban"]
[Date "2017.07.22"]
[Round "11"]
[White "Oberholzer, Francois"]
[Black "Mazibuko, Khanya"]
[Result "1-0"]
[ECO "B22"]
[WhiteElo "2046"]
[BlackElo "1808"]
[Annotator "NA RC"]
[PlyCount "93"]
[EventDate "2017.??.??"]
[EventCountry "RSA"]
[SourceTitle "playchess.com"]
[Source "ChessBase"]
[SourceQuality "1"]
[TimeControl "5400+30"]

{[%evp 8,93,12,32767,32767,32767,32767,15,0,32767,32767,32767,32767,32767,32767,32767,32767,0,52,38,32767,32767,32767,37,33,38,65,0,22,37,79,32767,32767,32767,45,25,33,20,45,40,68,58,45,55,32767,32767,32767,45,59,79,32767,147,380,183,145,126,125,158,170,196,203,214,257,274,300,365,1443,1454,32767,32767,32767,32767,31,32767,32767,32767,32767,-52,-31,32767,32767,32767,-36,-47,32767,32767,5289,12841]} 1. e4 {[%emt 0:00:00]} c5 {[%emt 0:01:17]} 2. c3 {[%emt 0:00:00]} e6 {[%emt 0:00:38]} 3. d4 {[%emt 0:01:29]} cxd4 {[%emt 0:00:41]} 4. cxd4 {[%emt 0:00:06]} d5 {[%emt 0:00:06]} 5. e5 {[%emt 0:02:27]} Nc6 {[%emt 0:00:18]} 6. Nf3 {[%emt 0:00:13]} Nh6 {[%emt 0:05:01]} 7. Bd3 {[%emt 0:11:50]} (7. Bxh6 $5 gxh6 8. Bb5 $11) 7... Nf5 $1 {[%emt 0:10:14] LiveBook: 229 Games} 8. Bxf5 {[%emt 0:05:10]} exf5 {[%emt 0:00:07]} 9. Nc3 {[%emt 0:00:47] C02: French: Advance Variation} a6 {[%emt 0:07:30]} 10. O-O {[%emt 0:08:00]} Be7 {[%emt 0:00:49]} 11. Bd2 $146 {[%emt 0:05:42]} ({Predecessor:} 11. Ne2 g5 12. Qb3 f4 13. Rd1 Be6 14. Bd2 {0-1 (40) Yankovsky,R (2455)-Aldama Degurnay,D (2440) Monterey Park 2013}) 11... O-O {[%emt 0:01:26]} 12. Rc1 {[%emt 0:01:31]} Na5 {[%emt 0:07:24]} 13. Na4 {[%emt 0:11:55]} Nc4 {[%emt 0:04:38]} 14. Bc3 {[%emt 0:00:58]} Bd7 {[%emt 0:05:13]} 15. Nc5 {[%emt 0:06:30]} b6 {[%emt 0:00:35]} 16. Nd3 {[%emt 0:00:56]} Rc8 {[%emt 0:07:35]} 17. Nb4 {[%emt 0:09:25]} (17. b3 $16) 17... Nxb2 {[%emt 0:08:12]} 18. Qb3 {[%emt 0:03:33]} Na4 {[%emt 0:10:55]} 19. Nxd5 {[%emt 0:04:14]} Nxc3 {[%emt 0:02:57]} 20. Rxc3 {[%emt 0:03:05]} Rxc3 {[%emt 0:04:03]} 21. Qxc3 {[%emt 0:02:54]} Bb5 {[%emt 0:02:13]} 22. Nxe7+ {[%emt 0:00:09]} Qxe7 {[%emt 0:00:05]} 23. Rd1 {[%emt 0:03:15]} Be2 {[%emt 0:03:17]} 24. Re1 {[%emt 0:00:09]} Bxf3 {[%emt 0:04:05]} 25. Qxf3 {[%emt 0:00:01]} Qb4 {[%emt 0:00:29]} 26. Rd1 {[%emt 0:00:28]} Rd8 {[%emt 0:01:10]} 27. h3 {[%emt 0:09:25]} g6 {[%emt 0:00:58]} 28. d5 $1 {[%emt 0:00:44]} Qb2 {[%emt 0:00:31] [#]} 29. Qe3 $1 {[%emt 0:00:50]} Qxa2 $2 {[%emt 0:00:56]} (29... Qc2 $16 30. Rc1 Qe4) 30. d6 {[%emt 0:00:48]} (30. e6 $142 Re8 31. e7 (31. Qxb6 Qe2 $16)) 30... b5 {[%emt 0:02:10] [#]} 31. Qb6 $2 {[%emt 0:00:37]} (31. Qg5 $1 $18 {[%cal Rg5d8] is the precise move to win.} Rd7 32. Rc1) 31... Rd7 {[%emt 0:00:25]} 32. Qc6 {[%emt 0:00:07]} Qe6 {[%emt 0:00:14]} 33. Qxa6 {[%emt 0:00:45]} b4 {[%emt 0:01:04]} 34. Qb5 {[%emt 0:01:45]} b3 {[%emt 0:01:48]} 35. Rd3 {[%emt 0:01:18]} f4 {[%emt 0:02:52]} 36. Rxb3 {[%emt 0:02:48]} f6 {[%emt 0:00:46] [#]} (36... Rd8 $142 37. Qa5 Rd7 38. Rb8+ Kg7) 37. Rc3 $1 {[%emt 0:03:07]} fxe5 {[%emt 0:02:27]} 38. Rc7 {[%emt 0:01:15]} Rd8 {[%emt 0:00:28]} 39. d7 Kf7 {[%emt 0:00:33]} 40. Qc5 {[%emt 0:00:59]} Rxd7 {[%emt 0:01:24]} 41. Rc8 {[%emt 0:00:03]} Qd6 {[%emt 0:00:45]} 42. Qc4+ {[%emt 0:00:50]} Qd5 {[%emt 0:01:23]} 43. Qb4 {[%emt 0:00:02]} Qd6 {[%emt 0:00:13]} 44. Qc4+ {[%emt 0:00:22]} Kg7 {[%emt 0:00:35]} 45. Qg8+ {[%emt 0:00:42]} Kh6 {[%emt 0:00:05]} 46. Re8 {[%emt 0:00:27]} Re7 $2 {[%emt 0:00:35]} (46... Qc5 $11) 47. Qf8+ $18 {[%emt 0:00:11]} 1-0

[Event "2017 South African Open Ch"]
[Site "Durban"]
[Date "2017.07.22"]
[Round "11"]
[White "Tlale, Tshepang"]
[Black "Govindasamy, Nashlen"]
[Result "1/2-1/2"]
[ECO "B40"]
[WhiteElo "1927"]
[BlackElo "2087"]
[Annotator "NA RC"]
[PlyCount "143"]
[EventDate "2017.??.??"]
[EventCountry "RSA"]
[SourceTitle "playchess.com"]
[Source "ChessBase"]
[SourceQuality "1"]
[TimeControl "5400+30"]

1. e4 {[%emt 0:00:00]} c5 {[%emt 0:12:45]} 2. Nf3 {[%emt 0:00:00]} e6 {[%emt 0:00:07]} 3. c4 {[%emt 0:00:07]} Nc6 {[%emt 0:00:24]} 4. d4 {[%emt 0:00:36]} cxd4 {[%emt 0:00:16]} 5. Nxd4 {[%emt 0:00:18]} Nf6 {[%emt 0:00:12]} 6. Nc3 {[%emt 0:00:59]} Bb4 {[%emt 0:00:11]} 7. Nxc6 {[%emt 0:07:22]} bxc6 {[%emt 0:00:10]} 8. Bd3 {[%emt 0:01:02]} e5 {[%emt 0:00:14] LiveBook: 160 Games} 9. Bd2 {[%emt 0:02:35]} O-O {[%emt 0:02:35] B44: Sicilian: Taimanov: 5 Nb5} 10. O-O {[%emt 0:01:20]} Bc5 {[%emt 0:19:25]} (10... d6 11. Kh1 Bc5 12. Bg5 h6 13. Bh4 g5 14. Bg3 Rb8 15. b3 h5 16. Qd2 Nd7 17. h3 h4 18. Bh2 Bd4 19. Rac1 Nc5 20. Bb1 {1-0 (76) Georgiev,K (2651)-Zhang,P (2567) Dos Hermanas 2004}) 11. h3 {[%emt 0:12:56]} d6 12. Qf3 Ne8 $146 (12... Bxh3 $2 {[%mdl 8192]}) (12... Be6 $11) ({Predecessor:} 12... Rb8 13. Rab1 Be6 14. Be2 d5 15. Qg3 Nxe4 16. Nxe4 dxe4 17. Rbd1 {0-1 (30) Hutton,A (1197)-Power,M (1840) IECC email 1999}) 13. Ne2 a5 14. Rab1 Nc7 15. Be3 Ne6 16. Bxc5 Nxc5 17. Rfd1 f5 18. Bc2 {[%emt 0:54:55]} fxe4 19. Qe3 Be6 {[%emt 1:20:59]} 20. b3 {[%emt 0:04:31]} Qe7 {[%emt 0:04:47]} 21. Nc3 {[%emt 0:07:14]} Rf4 {[%emt 0:00:28]} 22. Bxe4 {[%emt 0:10:36]} Raf8 {[%emt 0:01:45]} (22... Nxe4 $11 {remains equal.} 23. Nxe4 Bf5) 23. Rb2 {[%emt 0:01:34]} Nxe4 {[%emt 0:00:40]} 24. Nxe4 {[%emt 0:00:38]} d5 {[%emt 0:00:39]} 25. Nc5 {[%emt 0:06:40]} Bf7 {[%emt 0:02:27]} 26. cxd5 {[%emt 0:02:38]} Bxd5 {[%emt 0:00:55]} 27. Re1 {[%emt 0:03:25]} R4f5 {[%emt 0:04:29]} (27... R8f5 $11) 28. Ne4 {[%emt 0:01:20]} Qh4 {[%emt 0:01:39]} 29. Ng3 {[%emt 0:02:11]} Rg5 {[%emt 0:01:05]} 30. Qc3 {[%emt 0:00:59]} Qf4 {[%emt 0:00:49]} 31. Qe3 {[%emt 0:01:02]} Qh4 {[%emt 0:03:51]} 32. Qc3 {[%emt 0:00:26]} Qd4 {[%emt 0:00:32]} 33. Rc2 {[%emt 0:02:09]} h5 {[%emt 0:01:19]} 34. Qe3 {[%emt 0:00:37]} Qf4 {[%emt 0:00:32]} 35. Qxf4 {[%emt 0:02:23]} exf4 {[%emt 0:00:14]} 36. Ne4 {[%emt 0:00:17]} Re5 {[%emt 0:00:29]} 37. f3 {[%emt 0:00:11]} Rfe8 {[%emt 0:00:16]} 38. Rce2 {[%emt 0:00:36]} Bxe4 {[%emt 0:00:28]} 39. Rxe4 {[%emt 0:00:35]} Rxe4 {[%emt 0:00:03]} 40. fxe4 {[%emt 0:00:11]} Kf7 {[%emt 0:01:03]} 41. Kf2 {[%emt 0:00:28]} Rd8 {[%emt 0:00:17]} 42. h4 {[%emt 0:01:15]} Ke6 {[%emt 0:00:14]} 43. Rc1 {[%emt 0:01:51]} Ke5 {[%emt 0:00:14]} 44. Rxc6 {[%emt 0:02:04]} Kxe4 {[%emt 0:00:37]} 45. Rc4+ {[%emt 0:00:05]} Kf5 {[%emt 0:00:45]} 46. Ra4 $11 {[%emt 0:01:05]} Rd2+ {[%emt 0:00:56]} 47. Kf3 {[%emt 0:00:15]} Rd3+ {[%emt 0:00:09]} 48. Kf2 {[%emt 0:00:14]} Kg4 {[%emt 0:00:28]} 49. Rxa5 {[%emt 0:00:37]} Kxh4 {[%emt 0:00:15]} 50. Re5 {[%emt 0:00:17]} Kg4 {[%emt 0:00:47]} 51. Re2 {[%emt 0:01:05]} Kf5 {[%emt 0:00:57]} 52. b4 {[%emt 0:00:24]} Rd4 {[%emt 0:00:40]} 53. Rb2 {[%emt 0:00:10]} Ke6 {[%emt 0:00:22]} 54. b5 {[%emt 0:00:39]} Kd7 {[%emt 0:00:22]} 55. b6 {[%emt 0:00:32]} Kc8 {[%emt 0:00:07]} 56. a3 {[%emt 0:00:14]} Ra4 {[%emt 0:01:05]} 57. Rb3 {[%emt 0:00:10]} Kb7 {[%emt 0:00:11]} 58. Kf3 {[%emt 0:01:52]} g5 {[%emt 0:00:11]} 59. Kf2 {[%emt 0:00:24]} Ra5 {[%emt 0:01:01]} 60. Kf3 {[%emt 0:00:16]} Ra6 {[%emt 0:00:24]} 61. Ke4 {[%emt 0:00:33]} Rxb6 {[%emt 0:00:26]} 62. Rd3 {[%emt 0:00:44]} Rb2 {[%emt 0:00:41]} 63. Kf3 {[%emt 0:00:33]} Kc6 {[%emt 0:00:31]} 64. g3 {[%emt 0:00:33]} fxg3 {[%emt 0:00:14]} 65. Kxg3 {[%emt 0:00:01]} Kc5 {[%emt 0:00:48]} 66. Rf3 {[%emt 0:00:27]} Kc4 {[%emt 0:00:14]} 67. a4 {[%emt 0:00:43]} h4+ {[%emt 0:00:44]} 68. Kh3 {[%emt 0:00:12]} Kb4 {[%emt 0:00:40]} 69. Rf5 {[%emt 0:00:34]} Rb3+ {[%emt 0:00:13]} 70. Kh2 {[%emt 0:00:29]} Rg3 {[%emt 0:00:45]} 71. a5 {[%emt 0:00:02]} Ra3 {[%emt 0:00:39]} 72. Rxg5 {[%emt 0:00:06]} 1/2-1/2